[Event "55th Rubinstein Memorial-C 2019"]
[Site "Polanica-Zdroj"]
[Date "2019.08.25"]
[Round "9.9"]
[White "Talik, Patryk"]
[Black "Rylski, Tadeusz"]
[Result "1-0"]
[ECO "D10"]
[WhiteElo "1975"]
[BlackElo "1616"]
[Annotator "NA"]
[PlyCount "103"]
[EventDate "2019.08.17"]
[EventType "swiss"]
[EventCountry "POL"]
[SourceTitle "playchess.com"]
[Source "ChessBase"]
[SourceQuality "1"]
[TimeControl "40/5400+30:1800+30"]

1. d4 {[%emt 0:10:06]} d5 {[%emt 0:00:00]} 2. c4 {[%emt 0:00:05]} c6 {[%emt 0:00:00]} 3. cxd5 {[%emt 0:00:37]} cxd5 {[%emt 0:00:00]} 4. Nc3 {[%emt 0:00:05]} Nf6 {[%emt 0:00:30]} 5. Bg5 {[%emt 0:00:11]} e6 {[%emt 0:01:09]} 6. Nf3 {[%emt 0:00:23]} Nc6 {[%emt 0:01:12]} 7. e3 {[%emt 0:00:16]} Be7 {[%emt 0:01:11]} 8. Rc1 {[%emt 0:00:56]} O-O {[%emt 0:01:00]} 9. Bd3 {[%emt 0:00:07]} Bd7 {[%emt 0:01:30]} 10. O-O {[%emt 0:00:21]} Rc8 {[%emt 0:01:59]} 11. Qe2 {[%emt 0:03:24] D13: Slav Defence: Exchange variation without ...Bf5} (11. Bb1 Ne8 12. Qd3 g6 13. h4 Nd6 14. Rfd1 Nc4 15. Qe2 Bxg5 16. hxg5 Qb6 17. Na4 Qd8 18. Nc5 Nd6 {1-0 (43) Sarana,A (2630)-Zierk,S (2510) chess.com INT 2019}) 11... h6 {[%emt 0:05:40]} 12. Bh4 {[%emt 0:00:30]} Ne8 {[%emt 0:02:22]} 13. Bg3 $146 {[%emt 0:01:07]} ({Predecessor:} 13. Bxe7 Nxe7 14. Ne5 Nd6 15. f4 Be8 16. Rf3 f6 17. Ng4 f5 18. Ne5 {½-½ (27) Wielsch,K (2167)-Voelker,S (2078) Oberwinden 2007}) 13... Bd6 {[%emt 0:04:16]} 14. Ne5 {[%emt 0:02:03]} Bxe5 {[%emt 0:01:49]} 15. dxe5 {[%emt 0:00:07]} Nc7 {[%emt 0:02:32]} 16. Bb1 {[%emt 0:02:12]} Ne7 {[%emt 0:01:42]} 17. Rfd1 {[%emt 0:03:33]} a6 {[%emt 0:03:32]} 18. Bh4 {[%emt 0:00:57]} Qe8 {[%emt 0:01:53]} 19. Rd4 {[%emt 0:05:08]} Nb5 {[%emt 0:02:16]} 20. Rg4 {[%emt 0:00:42]} Ng6 {[%emt 0:01:54]} 21. Bg3 {[%emt 0:02:17]} Nxc3 {[%emt 0:02:41]} 22. bxc3 {[%emt 0:00:09]} Bb5 {[%emt 0:00:31]} 23. Qc2 $14 {[%emt 0:00:16]} Rc4 {[%emt 0:03:25]} 24. Rxc4 {[%emt 0:16:29]} Bxc4 {[%emt 0:00:13]} 25. h4 {[%emt 0:00:05]} f5 {[%emt 0:04:38]} 26. exf6 {[%emt 0:00:44]} Rxf6 {[%emt 0:00:09]} 27. h5 {[%emt 0:05:25]} Nf8 {[%emt 0:00:25]} 28. Qd1 {[%emt 0:00:41]} e5 {[%emt 0:03:55]} 29. e4 {[%emt 0:01:58]} Qf7 {[%emt 0:04:31]} 30. exd5 {[%emt 0:08:51]} Bxd5 {[%emt 0:00:24]} 31. Qe2 {[%emt 0:01:18]} Nd7 {[%emt 0:06:14]} 32. c4 {[%emt 0:00:31]} Bc6 {[%emt 0:00:25]} 33. Rd1 {[%emt 0:04:29]} Re6 {[%emt 0:03:43]} 34. Bg6 {[%emt 0:01:45]} Qe7 {[%emt 0:01:15]} 35. Qd2 {[%emt 0:02:50]} Nf8 {[%emt 0:06:09]} 36. Bf5 {[%emt 0:00:33]} Rf6 {[%emt 0:00:54]} 37. Bh4 {[%emt 0:00:34]} Qf7 {[%emt 0:00:57]} 38. Bxf6 {[%emt 0:00:26]} Qxf6 {[%emt 0:00:30]} 39. Qd3 {[%emt 0:01:56]} Qh4 {[%emt 0:02:29]} 40. Re1 {[%emt 0:02:28]} Qg5 {[%emt 0:06:08]} 41. Be4 {[%emt 0:31:41]} Qxh5 {[%emt 0:32:40]} 42. Bxc6 {[%emt 0:00:13]} bxc6 {[%emt 0:00:06]} 43. Qe4 {[%emt 0:00:28]} Ng6 {[%emt 0:01:52]} 44. Qxc6 {[%emt 0:02:17]} Qg5 {[%emt 0:02:06]} 45. Qa8+ {[%emt 0:01:05]} Kh7 {[%emt 0:00:10]} 46. Qe4 {[%emt 0:00:09]} Qe7 {[%emt 0:01:24]} 47. Rb1 {[%emt 0:00:19]} Qc5 {[%emt 0:01:11]} 48. Rb3 {[%emt 0:00:40]} Qd6 {[%emt 0:02:46]} 49. Rd3 {[%emt 0:00:12]} Qf6 {[%emt 0:02:25]} 50. Rg3 {[%emt 0:00:19]} h5 {[%emt 0:00:14]} 51. c5 {[%emt 0:00:25]} Kh6 {[%emt 0:00:22]} 52. Rxg6+ {[%emt 0:00:58]} 1-0

[Event "55th Rubinstein Memorial-C 2019"]
[Site "Polanica-Zdroj"]
[Date "2019.08.25"]
[Round "9.10"]
[White "Szydelko, Kazimierz"]
[Black "Rakita, Efim"]
[Result "0-1"]
[ECO "D63"]
[WhiteElo "1717"]
[BlackElo "1960"]
[Annotator "NA"]
[PlyCount "78"]
[EventDate "2019.08.17"]
[EventType "swiss"]
[EventCountry "POL"]
[SourceTitle "playchess.com"]
[Source "ChessBase"]
[SourceQuality "1"]
[TimeControl "40/5400+30:1800+30"]

1. d4 {[%emt 0:00:00]} d5 {[%emt 0:00:00]} 2. Nf3 {[%emt 0:00:05]} Nf6 {[%emt 0:00:00]} 3. c4 {[%emt 0:00:15]} e6 {[%emt 0:00:34]} 4. Nc3 {[%emt 0:00:15]} Be7 {[%emt 0:00:59]} 5. Bg5 {[%emt 0:01:32]} O-O {[%emt 0:00:46]} 6. e3 {[%emt 0:00:02]} Nbd7 {[%emt 0:03:47]} 7. Rc1 {[%emt 0:01:14]} c6 {[%emt 0:01:13]} 8. cxd5 {[%emt 0:01:39]} Nxd5 {[%emt 0:01:42]} 9. Bxe7 {[%emt 0:00:36]} Qxe7 {[%emt 0:00:30]} 10. Bd3 {[%emt 0:00:30]} Nxc3 {[%emt 0:03:01]} 11. Rxc3 {[%emt 0:02:26]} e5 {[%emt 0:00:22] D53: Queen's Gambit Declined: 4 Bg5 Be7: Early deviations} 12. Qc2 {[%emt 0:04:16]} h6 {[%emt 0:04:22]} (12... g6 13. O-O Re8 14. dxe5 Nxe5 15. Nxe5 Qxe5 16. Rc5 {½-½ (16) Gershon,A (2540)-Meijers,V (2483) Linares 2001}) 13. O-O {[%emt 0:01:28]} Re8 {[%emt 0:01:22]} 14. dxe5 {[%emt 0:01:52]} Nxe5 {[%emt 0:00:08]} 15. Nxe5 {[%emt 0:02:49]} Qxe5 {[%emt 0:00:02]} 16. Qb3 $146 {[%emt 0:04:10]} ({Predecessor:} 16. Kh1 Kh8 17. Qb3 Re7 18. Bc4 Be6 19. Bxe6 Qxe6 20. Qxe6 Rxe6 21. Rd1 Re7 22. Rd6 Kg8 {1-0 (48) Bromberger,S (2310)-Schneider,R (2190) Regensburg 1997}) 16... Rb8 {[%emt 0:01:54]} 17. Bc4 {[%emt 0:10:08]} Be6 {[%emt 0:01:18]} 18. Rd1 {[%emt 0:00:43]} Red8 {[%emt 0:04:44]} 19. Bxe6 {[%emt 0:11:50]} Qxe6 {[%emt 0:03:53]} 20. Rcd3 {[%emt 0:03:20]} Rxd3 {[%emt 0:00:19]} 21. Rxd3 {[%emt 0:00:10]} Qxb3 {[%emt 0:03:30]} 22. Rxb3 {[%emt 0:00:09]} Rd8 {[%emt 0:00:45]} 23. Kf1 {[%emt 0:00:25]} Rd7 {[%emt 0:03:17]} 24. Ke2 $11 {[%emt 0:00:07]} Kf8 {[%emt 0:00:28]} 25. Rd3 {[%emt 0:07:55]} Rc7 {[%emt 0:01:09]} 26. Rd8+ {[%emt 0:05:14]} Ke7 {[%emt 0:00:02]} 27. Rd4 {[%emt 0:03:29]} c5 {[%emt 0:03:38]} 28. Rd3 {[%emt 0:02:27]} c4 {[%emt 0:05:24]} 29. Rc3 {[%emt 0:04:43]} Kd6 {[%emt 0:00:34]} 30. e4 {[%emt 0:03:41]} b5 {[%emt 0:01:05]} 31. Rg3 {[%emt 0:04:38]} f6 {[%emt 0:01:29]} 32. f4 {[%emt 0:02:00]} Kc5 {[%emt 0:01:55]} 33. Ke3 {[%emt 0:01:48]} Rd7 {[%emt 0:01:24]} 34. Rg6 {[%emt 0:03:20]} b4 {[%emt 0:01:20]} 35. e5 {[%emt 0:00:53]} fxe5 {[%emt 0:01:33]} 36. fxe5 {[%emt 0:01:00]} c3 {[%emt 0:00:12]} 37. e6 {[%emt 0:02:10]} c2 {[%emt 0:00:38]} 38. exd7 {[%emt 0:00:53]} c1=Q+ {[%emt 0:00:13]} 39. Ke4 {[%emt 0:01:03]} Qc4+ {[%emt 0:01:01]} 0-1

[Event "55th Rubinstein Memorial-C 2019"]
[Site "Polanica-Zdroj"]
[Date "2019.08.25"]
[Round "9.11"]
[White "Kolodziejski, Piotr"]
[Black "Simon, Marek"]
[Result "1/2-1/2"]
[ECO "B18"]
[WhiteElo "1701"]
[BlackElo "1879"]
[Annotator "NA"]
[PlyCount "85"]
[EventDate "2019.08.17"]
[EventType "swiss"]
[EventCountry "POL"]
[SourceTitle "playchess.com"]
[Source "ChessBase"]
[SourceQuality "1"]
[TimeControl "40/5400+30:1800+30"]

1. e4 {[%emt 0:00:00]} c6 {[%emt 0:00:00]} 2. d4 {[%emt 0:00:00]} d5 {[%emt 0:00:00]} 3. Nc3 {[%emt 0:00:00]} dxe4 {[%emt 0:00:00]} 4. Nxe4 {[%emt 0:00:00]} Bf5 {[%emt 0:00:00]} 5. Ng3 {[%emt 0:00:14]} Bg6 {[%emt 0:00:00]} 6. Nh3 {[%emt 0:00:11]} Nf6 {[%emt 0:00:10]} 7. Nf4 {[%emt 0:00:24]} e5 {[%emt 0:00:03]} 8. Nxg6 {[%emt 0:00:08]} hxg6 {[%emt 0:00:03]} 9. dxe5 {[%emt 0:00:19]} Qa5+ {[%emt 0:00:10]} 10. Bd2 {[%emt 0:00:06]} Qxe5+ {[%emt 0:00:05]} 11. Qe2 {[%emt 0:00:31]} Qxe2+ {[%emt 0:01:51]} 12. Bxe2 {[%emt 0:00:07]} Nbd7 {[%emt 0:00:51]} 13. O-O-O {[%emt 0:03:38]} Bc5 {[%emt 0:01:33]} 14. f4 {[%emt 0:04:38]} Nd5 {[%emt 0:05:40]} 15. Bf3 {[%emt 0:01:03]} N7f6 {[%emt 0:00:38]} 16. Rde1+ {[%emt 0:08:35]} Kd7 {[%emt 0:04:13]} 17. Ne4 {[%emt 0:02:57]} Nxe4 {[%emt 0:02:56]} 18. Rxe4 {[%emt 0:00:26]} b5 {[%emt 0:03:32]} 19. h3 {[%emt 0:02:38]} Nf6 {[%emt 0:06:08]} 20. Re2 {[%emt 0:01:40]} Rae8 {[%emt 0:07:12]} 21. Rhe1 {[%emt 0:02:29]} Rxe2 {[%emt 0:00:49]} 22. Rxe2 {[%emt 0:00:09]} Bd6 {[%emt 0:32:41]} 23. Be3 {[%emt 0:08:10]} Kc7 {[%emt 0:01:49]} 24. c4 {[%emt 0:08:53]} bxc4 {[%emt 0:02:31]} 25. Rc2 {[%emt 0:00:21]} Nd5 {[%emt 0:02:44]} 26. Bd2 {[%emt 0:02:11]} Nb6 {[%emt 0:04:58]} 27. a4 {[%emt 0:09:46]} Nxa4 {[%emt 0:10:57]} 28. Rxc4 {[%emt 0:01:29]} Nc5 {[%emt 0:00:08]} 29. Kc2 {[%emt 0:04:20]} Rc8 {[%emt 0:04:12]} 30. b4 {[%emt 0:02:50]} Ne6 {[%emt 0:01:26]} 31. Rxc6+ {[%emt 0:01:05]} Kd7 {[%emt 0:00:20]} 32. Rxc8 {[%emt 0:01:00]} Kxc8 {[%emt 0:00:02]} 33. Bd5 {[%emt 0:00:59]} Kd7 {[%emt 0:05:46]} 34. Kd3 {[%emt 0:02:12]} Nxf4+ {[%emt 0:01:29]} 35. Bxf4 {[%emt 0:00:11]} Bxf4 {[%emt 0:00:02]} 36. Bxf7 {[%emt 0:00:10]} g5 {[%emt 0:00:15]} 37. Kc4 {[%emt 0:00:31]} Kc7 {[%emt 0:00:12]} 38. b5 {[%emt 0:00:33]} Be5 {[%emt 0:00:15]} 39. Kd5 {[%emt 0:00:14]} Bf6 {[%emt 0:00:05]} 40. Be8 {[%emt 0:00:16]} Kb6 {[%emt 0:00:06]} 41. Bc6 {[%emt 0:30:18]} Be7 {[%emt 0:30:45]} 42. Be8 {[%emt 0:00:08]} Bf6 {[%emt 0:00:07]} 43. Bc6 {[%emt 0:00:04]} 1/2-1/2

[Event "55th Rubinstein Memorial-C 2019"]
[Site "Polanica-Zdroj"]
[Date "2019.08.25"]
[Round "9.12"]
[White "Myrmus, Mateusz"]
[Black "Sypien, Natan"]
[Result "1/2-1/2"]
[ECO "C56"]
[WhiteElo "1598"]
[BlackElo "1819"]
[Annotator "NA"]
[PlyCount "60"]
[EventDate "2019.08.17"]
[EventType "swiss"]
[EventCountry "POL"]
[SourceTitle "playchess.com"]
[Source "ChessBase"]
[SourceQuality "1"]
[TimeControl "40/5400+30:1800+30"]

1. e4 {[%emt 0:00:00]} e5 {[%emt 0:00:00]} 2. Bc4 {[%emt 0:00:00]} Nf6 {[%emt 0:00:00]} 3. d4 {[%emt 0:00:09]} exd4 {[%emt 0:01:20]} 4. Nf3 {[%emt 0:00:18]} Nc6 {[%emt 0:00:49]} 5. O-O {[%emt 0:00:12]} Nxe4 {[%emt 0:01:12]} 6. Re1 {[%emt 0:00:11]} d5 {[%emt 0:00:01]} 7. Bxd5 {[%emt 0:00:17]} Qxd5 {[%emt 0:00:05]} 8. Nc3 {[%emt 0:00:06]} Qh5 {[%emt 0:02:41]} 9. Nxe4 {[%emt 0:00:09]} Be6 {[%emt 0:02:20]} 10. Bg5 {[%emt 0:00:22]} Bd6 {[%emt 0:05:25]} 11. Nxd6+ {[%emt 0:32:14]} cxd6 {[%emt 0:00:01]} 12. Bf4 {[%emt 0:01:44]} Qd5 {[%emt 0:00:24]} 13. c3 {[%emt 0:03:36]} Kd7 {[%emt 0:07:22]} 14. Qa4 {[%emt 0:08:49]} b5 {[%emt 0:04:53]} 15. Qa3 {[%emt 0:03:42]} g5 {[%emt 0:24:43]} 16. Bg3 {[%emt 0:03:36]} g4 {[%emt 0:12:23]} 17. Nxd4 {[%emt 0:02:26]} Nxd4 {[%emt 0:00:13]} 18. cxd4 {[%emt 0:00:09]} h5 {[%emt 0:00:44]} 19. Bh4 {[%emt 0:02:39]} a5 {[%emt 0:00:48]} 20. Rac1 {[%emt 0:02:30]} Rhe8 {[%emt 0:01:50]} 21. Qc3 {[%emt 0:00:43]} Rec8 {[%emt 0:01:27]} 22. Qd2 {[%emt 0:00:48]} Rxc1 {[%emt 0:07:43]} 23. Rxc1 {[%emt 0:00:05]} Rc8 {[%emt 0:00:02]} 24. Rxc8 {[%emt 0:04:46]} Kxc8 {[%emt 0:00:01]} 25. Qxa5 {[%emt 0:03:56]} Qxa2 {[%emt 0:00:03]} 26. Qxb5 {[%emt 0:00:29]} Qb1+ {[%emt 0:00:48]} 27. Qf1 {[%emt 0:00:05]} Qxb2 {[%emt 0:01:04]} 28. Bf6 {[%emt 0:00:12]} Kd7 {[%emt 0:06:32]} 29. Qd1 {[%emt 0:00:17]} Qb3 {[%emt 0:02:12]} 30. Qa1 {[%emt 0:01:58]} Qa2 {[%emt 0:00:49]} 1/2-1/2

[Event "55th Rubinstein Memorial-C 2019"]
[Site "Polanica-Zdroj"]
[Date "2019.08.25"]
[Round "9.13"]
[White "Karnasiewicz, Robert"]
[Black "Mytnik, Kinga"]
[Result "1/2-1/2"]
[ECO "A00"]
[WhiteElo "1803"]
[BlackElo "1620"]
[Annotator "NA"]
[PlyCount "179"]
[EventDate "2019.08.17"]
[EventType "swiss"]
[EventCountry "POL"]
[SourceTitle "playchess.com"]
[Source "ChessBase"]
[SourceQuality "1"]
[TimeControl "40/5400+30:1800+30"]

1. c3 {[%emt 0:00:21]} d6 {[%emt 0:00:14]} 2. g3 {[%emt 0:00:20]} Nf6 {[%emt 0:00:17]} 3. Bg2 {[%emt 0:00:06]} e5 {[%emt 0:00:22]} 4. c4 {[%emt 0:00:05]} c6 {[%emt 0:00:25]} 5. d4 {[%emt 0:02:21]} e4 {[%emt 0:03:20]} 6. d5 {[%emt 0:01:24]} cxd5 {[%emt 0:02:19]} 7. cxd5 {[%emt 0:00:02]} Bf5 {[%emt 0:02:48]} 8. Nc3 {[%emt 0:00:13]} Qe7 {[%emt 0:06:42]} 9. Nh3 {[%emt 0:01:13]} h6 {[%emt 0:02:30]} 10. O-O {[%emt 0:01:13]} Qd7 {[%emt 0:03:35]} 11. Qa4 {[%emt 0:01:44]} Qxa4 {[%emt 0:01:13]} 12. Nxa4 {[%emt 0:00:01]} Nxd5 {[%emt 0:00:25]} 13. Rd1 {[%emt 0:00:18]} Nf6 {[%emt 0:02:46]} 14. Bf4 {[%emt 0:01:09]} d5 {[%emt 0:01:51]} 15. Nc3 {[%emt 0:00:21]} Be6 {[%emt 0:00:55]} 16. Nb5 {[%emt 0:00:15]} Na6 {[%emt 0:01:15]} 17. Rac1 {[%emt 0:01:04]} Bc5 {[%emt 0:03:56]} 18. a3 {[%emt 0:15:47]} O-O {[%emt 0:01:11]} 19. b4 {[%emt 0:00:06]} Be7 {[%emt 0:11:59]} 20. Be3 {[%emt 0:08:07]} b6 {[%emt 0:04:04]} 21. Nf4 {[%emt 0:00:35]} Rfd8 {[%emt 0:05:41]} 22. Nxe6 {[%emt 0:03:15]} fxe6 {[%emt 0:00:06]} 23. Nd4 {[%emt 0:01:47]} e5 {[%emt 0:07:42]} 24. Nc6 {[%emt 0:04:53]} Re8 {[%emt 0:00:16]} 25. Nxe5 {[%emt 0:02:57]} Bxb4 {[%emt 0:00:59]} 26. axb4 {[%emt 0:00:28]} Rxe5 {[%emt 0:00:21]} 27. b5 {[%emt 0:00:20]} Nc5 {[%emt 0:09:50]} 28. Bxc5 {[%emt 0:01:52]} bxc5 {[%emt 0:00:05]} 29. Rxc5 {[%emt 0:00:02]} Re6 {[%emt 0:01:47]} 30. Bh3 {[%emt 0:00:31]} Rb6 {[%emt 0:00:55]} 31. e3 {[%emt 0:01:07]} Kf8 {[%emt 0:06:41]} 32. Bf1 {[%emt 0:02:56]} Rab8 {[%emt 0:01:05]} 33. Ra1 {[%emt 0:00:26]} R8b7 {[%emt 0:01:09]} 34. Rc8+ {[%emt 0:00:30]} Ke7 {[%emt 0:00:50]} 35. Ra8 {[%emt 0:00:05]} Ne8 {[%emt 0:01:56]} 36. R1xa7 {[%emt 0:00:49]} Nd6 {[%emt 0:01:42]} 37. Rxb7+ {[%emt 0:01:56]} Rxb7 {[%emt 0:00:05]} 38. Ra1 {[%emt 0:00:59]} Nxb5 {[%emt 0:00:58]} 39. Bxb5 {[%emt 0:00:19]} Rxb5 {[%emt 0:00:05]} 40. Ra7+ {[%emt 0:00:18]} Kf6 {[%emt 0:00:06]} 41. Kg2 {[%emt 0:30:18]} h5 {[%emt 0:31:39]} 42. h3 {[%emt 0:00:36]} g5 {[%emt 0:01:19]} 43. Ra6+ {[%emt 0:00:36]} Kg7 {[%emt 0:01:25]} 44. Re6 {[%emt 0:00:40]} g4 {[%emt 0:01:39]} 45. h4 {[%emt 0:02:09]} Ra5 {[%emt 0:01:58]} 46. Re5 {[%emt 0:00:32]} Kg6 {[%emt 0:00:27]} 47. Rg5+ {[%emt 0:00:38]} Kh6 {[%emt 0:00:06]} 48. Re5 {[%emt 0:00:20]} Kg6 {[%emt 0:00:05]} 49. Re6+ {[%emt 0:00:07]} Kg7 {[%emt 0:00:33]} 50. Rd6 {[%emt 0:00:32]} Rb5 {[%emt 0:01:08]} 51. Ra6 {[%emt 0:01:00]} Rc5 {[%emt 0:00:17]} 52. Kf1 {[%emt 0:00:35]} Rb5 {[%emt 0:01:21]} 53. Ra2 {[%emt 0:00:46]} Rb3 {[%emt 0:01:07]} 54. Ke2 {[%emt 0:00:09]} Kf6 {[%emt 0:00:45]} 55. Ra6+ {[%emt 0:00:06]} Kg7 {[%emt 0:00:11]} 56. Ra5 {[%emt 0:01:04]} Rd3 {[%emt 0:01:29]} 57. Ra7+ {[%emt 0:00:33]} Kf6 {[%emt 0:00:35]} 58. Rh7 {[%emt 0:00:35]} Kg6 {[%emt 0:00:09]} 59. Rd7 {[%emt 0:00:13]} Kf6 {[%emt 0:01:13]} 60. Rd6+ {[%emt 0:00:12]} Kg7 {[%emt 0:00:10]} 61. Re6 {[%emt 0:00:15]} Kh7 {[%emt 0:00:14]} 62. Re5 {[%emt 0:00:14]} Kg6 {[%emt 0:00:25]} 63. Rg5+ {[%emt 0:00:16]} Kh6 {[%emt 0:00:07]} 64. Rf5 {[%emt 0:00:18]} Kg6 {[%emt 0:00:15]} 65. Re5 {[%emt 0:00:02]} Kh6 {[%emt 0:04:02]} 66. Rg5 {[%emt 0:00:11]} d4 {[%emt 0:00:28]} 67. Rd5 {[%emt 0:03:36]} dxe3 {[%emt 0:01:12]} 68. Rxd3 {[%emt 0:00:06]} exd3+ {[%emt 0:00:07]} 69. Kxe3 {[%emt 0:00:02]} Kg6 {[%emt 0:00:20]} 70. Kxd3 {[%emt 0:00:06]} Kf6 {[%emt 0:01:27]} 71. Kd4 {[%emt 0:00:59]} Kf5 {[%emt 0:00:23]} 72. Kd5 {[%emt 0:00:35]} Kf6 {[%emt 0:00:12]} 73. Ke4 {[%emt 0:07:36]} Ke6 {[%emt 0:00:50]} 74. Kd3 {[%emt 0:12:16]} Kf6 {[%emt 0:00:51]} 75. Kd4 {[%emt 0:00:19]} Kf5 {[%emt 0:00:38]} 76. Ke3 {[%emt 0:00:40]} Ke5 {[%emt 0:00:43]} 77. f4+ {[%emt 0:05:04]} gxf3 {[%emt 0:00:16]} 78. Kxf3 {[%emt 0:00:04]} Kf5 {[%emt 0:00:09]} 79. Ke3 {[%emt 0:00:32]} Ke5 {[%emt 0:00:45]} 80. Ke2 {[%emt 0:00:20]} Ke4 {[%emt 0:00:26]} 81. Kf2 {[%emt 0:00:04]} Ke5 {[%emt 0:01:04]} 82. Ke3 {[%emt 0:00:03]} Kf5 {[%emt 0:01:50]} 83. Kf3 {[%emt 0:00:07]} Ke5 {[%emt 0:01:47]} 84. g4 {[%emt 0:00:08]} hxg4+ {[%emt 0:00:08]} 85. Kxg4 {[%emt 0:00:01]} Kf6 {[%emt 0:00:07]} 86. h5 {[%emt 0:00:05]} Kg7 {[%emt 0:00:28]} 87. Kg5 {[%emt 0:00:04]} Kh7 {[%emt 0:01:13]} 88. h6 {[%emt 0:00:04]} Kg8 {[%emt 0:00:19]} 89. Kg6 {[%emt 0:00:02]} Kh8 {[%emt 0:00:06]} 90. h7 1/2-1/2

[Event "55th Rubinstein Memorial-C 2019"]
[Site "Polanica-Zdroj"]
[Date "2019.08.25"]
[Round "9.14"]
[White "Zalega, Maciej"]
[Black "Gajzner, Ryszard"]
[Result "1/2-1/2"]
[ECO "B36"]
[WhiteElo "1429"]
[BlackElo "1740"]
[Annotator "NA"]
[PlyCount "155"]
[EventDate "2019.08.17"]
[EventType "swiss"]
[EventCountry "POL"]
[SourceTitle "playchess.com"]
[Source "ChessBase"]
[SourceQuality "1"]
[TimeControl "40/5400+30:1800+30"]

1. e4 {[%emt 0:00:00]} c5 {[%emt 0:00:00]} 2. Nf3 {[%emt 0:00:00]} g6 {[%emt 0:00:00]} 3. d4 {[%emt 0:00:00]} cxd4 {[%emt 0:00:00]} 4. Nxd4 {[%emt 0:00:00]} Nc6 {[%emt 0:00:00]} 5. c4 {[%emt 0:00:00]} Nf6 {[%emt 0:00:00]} 6. Nc3 {[%emt 0:00:00]} d6 {[%emt 0:00:00]} 7. Be2 {[%emt 0:00:00]} Nxd4 {[%emt 0:00:00]} 8. Qxd4 {[%emt 0:00:00]} Bg7 {[%emt 0:00:00]} 9. Be3 {[%emt 0:00:00]} O-O {[%emt 0:00:03]} 10. Qd2 {[%emt 0:00:00]} Qa5 {[%emt 0:00:35]} 11. Rc1 {[%emt 0:02:13]} Be6 {[%emt 0:00:12]} 12. f3 {[%emt 0:00:27]} Rfc8 {[%emt 0:00:12]} 13. b3 {[%emt 0:00:10]} a6 {[%emt 0:00:19]} 14. Na4 {[%emt 0:00:24]} Qxd2+ {[%emt 0:00:56]} 15. Kxd2 {[%emt 0:00:58]} Nd7 {[%emt 0:00:10]} 16. g4 {[%emt 0:02:37]} f5 {[%emt 0:03:17]} 17. exf5 {[%emt 0:00:39]} gxf5 {[%emt 0:00:07]} 18. h3 {[%emt 0:01:08]} Rf8 {[%emt 0:04:02]} 19. f4 {[%emt 0:03:33]} Rad8 {[%emt 0:05:47]} 20. Bd3 {[%emt 0:10:51]} h6 {[%emt 0:20:31]} 21. Rce1 {[%emt 0:07:02]} fxg4 {[%emt 0:05:43]} 22. Bb6 {[%emt 0:45:08]} Nxb6 {[%emt 0:00:26]} 23. Nxb6 {[%emt 0:00:03]} Rf6 {[%emt 0:06:51]} 24. f5 {[%emt 0:02:06]} Bxf5 {[%emt 0:02:36]} 25. Nd5 {[%emt 0:00:30]} Bxd3 {[%emt 0:03:17]} 26. Nxf6+ {[%emt 0:00:20]} Bxf6 {[%emt 0:01:54]} 27. Kxd3 {[%emt 0:00:02]} gxh3 {[%emt 0:00:25]} 28. Rxh3 {[%emt 0:00:24]} Bg5 {[%emt 0:00:05]} 29. Rf1 {[%emt 0:04:24]} Kg7 {[%emt 0:00:34]} 30. Kd4 {[%emt 0:01:37]} Rc8 {[%emt 0:00:44]} 31. b4 {[%emt 0:03:33]} Kg6 {[%emt 0:05:55]} 32. c5 {[%emt 0:03:40]} dxc5+ {[%emt 0:07:03]} 33. bxc5 {[%emt 0:00:13]} Rd8+ {[%emt 0:00:09]} 34. Kc4 {[%emt 0:03:27]} e5 {[%emt 0:01:33]} 35. Rd3 {[%emt 0:02:39]} Rc8 {[%emt 0:05:15]} 36. Rd6+ {[%emt 0:07:25]} Kh5 {[%emt 0:00:24]} 37. Rf5 {[%emt 0:00:38]} e4 {[%emt 0:01:27]} 38. Re5 {[%emt 0:01:07]} e3 {[%emt 0:00:43]} 39. Kb4 {[%emt 0:01:35]} Kg4 {[%emt 0:00:39]} 40. Rd7 {[%emt 0:00:30]} Kf4 {[%emt 0:01:40]} 41. Re6 {[%emt 0:30:33]} Kf3 {[%emt 0:31:05]} 42. Rf7+ {[%emt 0:00:11]} Kg2 {[%emt 0:01:46]} 43. Rxb7 {[%emt 0:00:06]} Rf8 {[%emt 0:00:10]} 44. c6 {[%emt 0:00:33]} Kf1 {[%emt 0:00:57]} 45. c7 {[%emt 0:00:58]} e2 {[%emt 0:02:09]} 46. Rb8 {[%emt 0:00:35]} Bd2+ {[%emt 0:02:42]} 47. Kc4 {[%emt 0:00:31]} Rf3 {[%emt 0:00:41]} 48. Rb1+ {[%emt 0:00:32]} Kf2 {[%emt 0:01:00]} 49. Kd5 {[%emt 0:00:29]} Rd3+ {[%emt 0:01:20]} 50. Ke4 {[%emt 0:00:36]} Rc3 {[%emt 0:01:04]} 51. c8=Q {[%emt 0:00:29]} Rxc8 {[%emt 0:00:09]} 52. Rf6+ {[%emt 0:00:33]} Kg3 {[%emt 0:01:18]} 53. Rg6+ {[%emt 0:00:10]} Bg5 {[%emt 0:00:33]} 54. Re6 {[%emt 0:00:41]} Rc3 {[%emt 0:00:31]} 55. Kd4 {[%emt 0:00:26]} Rc2 {[%emt 0:01:27]} 56. Rxa6 {[%emt 0:00:42]} Kf2 {[%emt 0:00:31]} 57. a3 {[%emt 0:00:31]} e1=Q {[%emt 0:00:16]} 58. Rxe1 {[%emt 0:00:17]} Kxe1 {[%emt 0:00:06]} 59. Ke4 {[%emt 0:00:19]} Rf2 {[%emt 0:01:06]} 60. Rb6 {[%emt 0:00:33]} Bd2 {[%emt 0:00:55]} 61. a4 {[%emt 0:00:37]} Rf4+ {[%emt 0:00:11]} 62. Kd3 {[%emt 0:00:14]} Rxa4 {[%emt 0:00:45]} 63. Rb1+ {[%emt 0:00:08]} Kf2 {[%emt 0:00:34]} 64. Kxd2 {[%emt 0:00:04]} h5 {[%emt 0:00:27]} 65. Rb8 {[%emt 0:00:19]} Rd4+ {[%emt 0:00:26]} 66. Kc3 {[%emt 0:00:09]} Rd5 {[%emt 0:00:29]} 67. Kc4 {[%emt 0:00:08]} Rd1 {[%emt 0:00:50]} 68. Rh8 {[%emt 0:00:16]} Rh1 {[%emt 0:00:18]} 69. Kd4 {[%emt 0:01:21]} h4 {[%emt 0:01:00]} 70. Ke4 {[%emt 0:00:28]} h3 {[%emt 0:00:56]} 71. Kf4 {[%emt 0:00:30]} Kg2 {[%emt 0:04:16]} 72. Rg8+ {[%emt 0:01:57]} Kh2 {[%emt 0:00:53]} 73. Kf3 {[%emt 0:00:33]} Rf1+ {[%emt 0:00:30]} 74. Ke2 {[%emt 0:00:10]} Ra1 {[%emt 0:01:14]} 75. Kf2 {[%emt 0:00:30]} Ra2+ {[%emt 0:01:05]} 76. Kf1 {[%emt 0:00:11]} Rg2 {[%emt 0:00:16]} 77. Rf8 {[%emt 0:00:37]} Ra2 {[%emt 0:00:37]} 78. Rf2+ {[%emt 0:00:30]} 1/2-1/2